[Event "8th Montevideo Open 2025"]
[Site "Montevideo"]
[Date "2025.02.05"]
[Round "5.16"]
[White "Izquierdo, Daniel"]
[Black "Quevedo, Andreina"]
[Result "1-0"]
[Annotator "TA"]
[ECO "A26"]
[WhiteElo "2069"]
[BlackElo "1860"]
[PlyCount "149"]
[EventDate "2025.02.01"]
[EventType "swiss"]
[EventCountry "URU"]
[SourceTitle "playchess.com"]
[Source "ChessBase"]
[SourceQuality "1"]
[TimeControl "5400+30"]

{[%evp 25,149,17,26,22,30,36,87,50,106,84,99,19,7,17,61,0,38,55,53,-16,38,0,0,-53,-51,-46,354,365,375,371,697,689,1038,464,472,464,468,369,348,352,313,135,140,135,136,126,170,165,170,176,176,166,222,212,222,222,222,219,219,219,219,219,312,219,304,325,320,288,292,244,229,147,147,147,229,169,271,230,230,208,339,365,343,334,771,655,1174,1137,1099,1029,979,755,783,415,877,635,612,607,29984,29985,29995,29991,29991,29991,29991,29982,29985,29983,29983,29984,29983,29983,29983,29984,29982,29983,29987,29988,29988,29989,29989,29986,29986,29987,29987,29987]} 1. Nf3 {[%emt 0:17:26]} Nf6 {[%emt 0:00:20]} 2. c4 {[%emt 0:00:21]} g6 {[%emt 0:01:19]} 3. g3 {[%emt 1:14:13]} Bg7 {[%emt 0:00:10]} 4. Bg2 {[%emt 0:00:00]} O-O {[%emt 0:00:59]} 5. O-O {[%emt 0:00:00]} d6 {[%emt 0:00:46]} 6. Nc3 {[%emt 0:00:00]} e5 {[%emt 0:01:28]} 7. d3 {[%emt 0:00:00]} Nc6 {[%emt 0:01:23]} 8. Rb1 {[%emt 0:00:00]} a5 {[%emt 0:01:23]} 9. a3 {[%emt 0:00:00][%cal Ba2a3,Ba3b4,Bb4b5][%mdl 32]} h6 {[%emt 0:14:10]} 10. b4 {[%emt 0:00:00]} axb4 {[%emt 0:00:04]} 11. axb4 {[%emt 0:00:00]} Be6 {[%emt 0:01:27]} 12. b5 {[%emt 0:00:00]} Ne7 {[%emt 0:05:25]} 13. Qb3 {[%emt 0:00:00]} Nd7 {[%emt 0:05:24]} 14. Ba3 {[%emt 0:00:00] A26: English Opening vs King's Indian with ...Nc6 and d3.} f5 {[%emt 0:00:51]} 15. Nd2 {[%emt 0:00:00]} Qc8 {[%emt 0:03:49]} (15... Rb8 $14) 16. Nd5 {[%emt 0:06:30] White is better. White is more active.} Nxd5 {[%emt 0:10:06]} (16... Bxd5 $14 17. cxd5 b6) 17. cxd5 $16 {[%emt 0:00:00]} (17. Bxd5 Bxd5 18. cxd5 Nb6 $11) 17... Bf7 {[%emt 0:00:07] [#]} 18. Rfc1 {[%emt 0:00:00] White has strong rooks and is better} (18. b6 $1 $16) 18... Qd8 $11 {[%emt 0:01:57]} 19. Bb4 $146 {[%emt 0:00:00]} (19. Nc4 b6 20. e3 Rb8 21. f4 exf4 22. gxf4 Qh4 23. Nd2 Nc5 24. Qc2 Qg4 25. h3 {1-0 Frasco,R (2315)-Goldberg,S (1710) corr 1997}) 19... Nf6 {[%emt 0:09:38]} 20. Rc2 {[%emt 0:00:00]} (20. Qc4 $14) 20... Qd7 {[%emt 0:02:56][%cal Of8c8]} 21. Rbc1 $36 {[%emt 0:00:00][%mdl 2048] White has some pressure.} Rfc8 {[%emt 0:02:23]} 22. Bc3 {[%emt 0:00:00]} (22. e4 $14) 22... g5 {[%emt 0:13:06]} (22... Qd8 $11) 23. Bb2 {[%emt 0:00:00]} Ra5 {[%emt 0:01:53]} 24. Nc4 {[%emt 0:00:00]} (24. b6 $11 Nxd5 25. Bxd5 Bxd5 26. Rxc7 Bxb3 27. Rxd7 Rxc1+ 28. Bxc1) 24... Rxb5 $15 {[%emt 0:02:01]} 25. Qa4 {[%emt 0:00:00][%cal Oc4d6]} Bxd5 $2 {[%emt 0:04:49][%mdl 8192] [#]} (25... Nxd5 $2 26. Na3 $18 (26. Nxd6 Qxd6 27. Qxb5 b6 $18)) (25... Be8 $15 {keeps the upper hand.}) 26. Nxd6 $1 $18 {[%emt 0:00:00][%mdl 512]} Bxg2 {[%emt 0:05:06]} (26... Qxd6 27. Qxb5) 27. Kxg2 {[%emt 0:00:00]} (27. Nxb5 Bc6 $18) 27... cxd6 {[%emt 0:07:14]} (27... Qxd6 28. Qxb5 Nd5 29. Qxb7 Rd8) 28. Rxc8+ {[%emt 0:00:00]} Kh7 {[%emt 0:00:04]} 29. R8c7 {[%emt 0:02:39]} (29. R1c7 $142 Qxc8 30. Rxc8 Rxb2 31. Qc4) 29... Qe8 {[%emt 0:01:05]} 30. Ba3 {[%emt 0:00:39][%cal Oc7c8]} e4 {[%emt 0:01:32]} 31. Rc8 {[%emt 0:00:50]} Qe5 {[%emt 0:00:11] [#]} 32. Bxd6 $1 {[%emt 0:01:46][%mdl 512]} Qd5 {[%emt 0:00:20]} 33. Qc4 {[%emt 0:01:43]} (33. dxe4 $18 {and White stays clearly on top.} Nxe4 34. Rd1 Nd2+ 35. f3) 33... exd3+ $16 {[%emt 0:01:34]} 34. Qxd5 {[%emt 0:00:02]} Rxd5 {[%emt 0:00:06]} 35. Bf8 {[%emt 0:01:51]} dxe2 {[%emt 0:00:46]} 36. Re1 {[%emt 0:00:00]} Bxf8 {[%emt 0:01:00]} 37. Rxf8 $18 {[%emt 0:00:00][%mdl 4096] Endgame KRR-KRN} Kg7 {[%emt 0:00:10]} 38. Rb8 {[%emt 0:00:35]} f4 {[%emt 0:00:54]} (38... Rd2 39. Rxb7+ Kg6) 39. Rxe2 {[%emt 0:00:40]} Rd3 {[%emt 0:00:52]} 40. Rxb7+ {[%emt 0:00:24]} Kg6 {[%emt 0:00:04] Hoping for ...f3+.} 41. f3 {[%emt 0:00:40]} fxg3 {[%emt 0:00:37]} 42. hxg3 {[%emt 0:00:19]} h5 {[%emt 0:00:22]} 43. Rb6 {[%emt 0:00:30]} Kf5 {[%emt 0:00:47]} (43... Rd5 44. Ra2 Rf5) 44. Rb5+ {[%emt 0:00:13]} Nd5 {[%emt 0:00:13]} 45. Kf2 {[%emt 0:00:22]} Kf6 {[%emt 0:00:19]} 46. Rc2 {[%emt 0:00:53]} Nc3 {[%emt 0:01:33]} 47. Ra5 {[%emt 0:00:25]} g4 {[%emt 0:00:16]} 48. fxg4 {[%emt 0:00:35]} (48. Rxh5 gxf3 49. Ke1 Ne4 $11) 48... hxg4 {[%emt 0:00:04] [#]} 49. Kg2 $1 {[%emt 0:00:17]} Nd5 {[%emt 0:00:32]} (49... Ne4 $16) 50. Rf2+ {[%emt 0:00:32]} Ke6 {[%emt 0:00:43]} (50... Kg6 51. Rb2 Ne3+ 52. Kh2 Rd6) 51. Re2+ {[%emt 0:00:21]} Kf6 {[%emt 0:00:31]} 52. Ra4 {[%emt 0:00:42]} Nc3 {[%emt 0:00:56]} (52... Kf5 {might work better.} 53. Re8 Kf6 54. Rf8+ (54. Rxg4 Ne3+ 55. Kf3 Nxg4+ 56. Kxg4 Ra3 $11) 54... Ke7) 53. Rf4+ {[%emt 0:00:09]} ({Weaker is} 53. Rxg4 Nxe2 54. Kf2 Nc3 $17) 53... Kg6 {[%emt 0:00:28]} 54. Rxg4+ {[%emt 0:00:12]} Kf5 $2 {[%emt 0:00:26]} (54... Kh5 55. Rh4+ Kg6 56. Re6+ Kf5) 55. Rf4+ {[%emt 0:00:12]} Kg5 {[%emt 0:00:08]} 56. Re5+ {[%emt 0:00:46]} Kg6 {[%emt 0:00:05]} 57. Rf3 {[%emt 0:00:38]} Rd2+ {[%emt 0:00:18]} 58. Kh3 {[%emt 0:00:02]} Nd5 {[%emt 0:00:43]} 59. Ra3 {[%emt 0:00:24]} Rd1 {[%emt 0:00:51]} (59... Kf6 $142 60. Re1 Rd4 61. Rf1+ Ke5) 60. Ra6+ {[%emt 0:00:22]} Kf7 {[%emt 0:00:40]} 61. Kh4 {[%emt 0:00:53] Threatens to win with Kg5.} Rh1+ {[%emt 0:00:42]} 62. Kg5 {[%emt 0:00:19] White mates.} Nb4 {[%emt 0:00:15]} 63. Ra7+ {[%emt 0:00:42]} Kf8 {[%emt 0:00:29]} 64. Rc5 {[%emt 0:00:52][%cal Rc5c8]} Re1 {[%emt 0:00:42]} 65. Rc8+ {[%emt 0:00:23]} Re8 {[%emt 0:00:12]} 66. Rxe8+ {[%emt 0:00:21]} Kxe8 {[%emt 0:00:04] KR-KN} 67. g4 {[%emt 0:00:25][%cal Bg3g4,Bg4g5,Bg5g6][%mdl 32]} Nc6 {[%emt 0:00:07]} 68. Rc7 {[%emt 0:00:15]} Ne7 {[%emt 0:00:29]} 69. Kh6 {[%emt 0:00:39]} Nd5 {[%emt 0:00:34]} 70. Rb7 {[%emt 0:00:15]} Kf8 {[%emt 0:00:30]} 71. g5 {[%emt 0:00:12]} Ne3 {[%emt 0:00:22]} 72. Kh7 {[%emt 0:00:32]} Ng4 {[%emt 0:00:08]} 73. Rb8+ {[%emt 0:00:27]} Ke7 {[%emt 0:00:05]} 74. g6 {[%emt 0:00:15]} Nf6+ {[%emt 0:00:09]} 75. Kh8 {[%emt 0:00:11] Weighted Error Value: White=0.46/Black=0.80  Loses game:     	---       	Black=1      Missed win:     	White=1     	---        Mistake:       	White=4     	Black=10     Inaccurate:     	White=3     	Black=6      OK:         	White=12    	Black=11     Best:        	White=3     	Black=4      Strong:       	White=1     	---        Brilliant:      	White=1     	---} 1-0

[Event "8th Montevideo Open 2025"]
[Site "Montevideo"]
[Date "2025.02.05"]
[Round "5.17"]
[White "Zaruski, Julio"]
[Black "Bauza, Alejandro"]
[Result "0-1"]
[Annotator "RC"]
[ECO "A05"]
[WhiteElo "1860"]
[BlackElo "2116"]
[PlyCount "126"]
[EventDate "2025.02.01"]
[EventType "swiss"]
[EventCountry "URU"]
[SourceTitle "playchess.com"]
[Source "ChessBase"]
[SourceQuality "1"]
[TimeControl "5400+30"]

1. Nf3 {[%emt 0:00:04]} c5 {[%emt 0:02:01]} 2. b3 {[%emt 0:00:18]} Nf6 {[%emt 0:01:05]} 3. Bb2 {[%emt 0:00:08]} e6 {[%emt 0:00:33]} 4. e3 {[%emt 0:01:25]} Be7 {[%emt 0:00:27]} 5. d4 {[%emt 0:01:52]} Nc6 {[%emt 0:01:51]} 6. a3 {[%emt 0:00:54]} O-O {[%emt 0:08:57]} 7. dxc5 {[%emt 0:00:13]} Bxc5 {[%emt 0:00:08]} 8. Bd3 {[%emt 0:00:16]} a6 {[%emt 0:00:48]} 9. b4 {[%emt 0:01:22]} Be7 {[%emt 0:00:36]} 10. c4 {[%emt 0:01:53]} b6 {[%emt 0:00:11]} 11. Nbd2 {[%emt 0:01:40]} Bb7 {[%emt 0:00:21]} 12. O-O {[%emt 0:02:04]} d5 {[%emt 0:00:24]} 13. cxd5 {[%emt 0:02:24]} Nxd5 {[%emt 0:02:32]} 14. Qe2 {[%emt 0:01:18]} Bf6 {[%emt 0:00:20]} 15. Bxf6 {[%emt 0:01:34]} Qxf6 {[%emt 0:03:07]} 16. Ne4 {[%emt 0:00:27]} Qe7 {[%emt 0:00:13]} 17. Rfc1 {[%emt 0:04:48]} Rfd8 {[%emt 0:01:28]} 18. Ng3 {[%emt 0:08:29]} g6 {[%emt 0:02:11]} 19. h4 {[%emt 0:02:26]} Qf6 {[%emt 0:03:29]} 20. Ne4 {[%emt 0:06:36]} Qg7 {[%emt 0:00:07]} 21. b5 {[%emt 0:01:14]} axb5 {[%emt 0:00:51]} 22. Bxb5 {[%emt 0:00:06]} Na5 {[%emt 0:00:20]} 23. Bc4 {[%emt 0:03:25]} Nxe3 {[%emt 0:13:09]} 24. Qxe3 {[%emt 0:03:41]} Nxc4 {[%emt 0:00:07]} 25. Qf4 {[%emt 0:00:57]} f5 {[%emt 0:04:03]} 26. Neg5 {[%emt 0:01:31]} Bd5 {[%emt 0:00:06]} 27. Re1 {[%emt 0:04:31]} h6 {[%emt 0:00:50]} 28. Nh3 {[%emt 0:00:48]} b5 {[%emt 0:01:44]} 29. Qc1 {[%emt 0:04:25]} e5 {[%emt 0:07:07]} 30. Qc3 {[%emt 0:02:07]} Be4 {[%emt 0:04:08]} 31. Qb3 {[%emt 0:02:28]} Kh7 {[%emt 0:20:38]} 32. Qxb5 {[%emt 0:05:31]} Bxf3 {[%emt 0:00:07]} 33. Qxc4 {[%emt 0:00:50]} Bg4 {[%emt 0:00:04]} 34. Kh2 {[%emt 0:01:46]} Rd4 {[%emt 0:01:17]} 35. Qe6 {[%emt 0:01:29]} Bxh3 {[%emt 0:01:07]} 36. Kxh3 {[%emt 0:00:17]} Raa4 {[%emt 0:00:29]} 37. g3 {[%emt 0:00:35]} e4 {[%emt 0:00:48]} 38. Ra2 {[%emt 0:00:50]} Qc7 {[%emt 0:00:30]} 39. Rc1 {[%emt 0:03:10]} Qg7 {[%emt 0:02:34]} 40. Rac2 {[%emt 0:00:59]} Ra7 {[%emt 0:00:39]} 41. h5 {[%emt 0:00:53]} Rf7 {[%emt 0:01:42]} 42. hxg6+ {[%emt 0:02:25]} Qxg6 {[%emt 0:00:06]} 43. Qxg6+ {[%emt 0:00:18]} Kxg6 {[%emt 0:00:06]} 44. Rc6+ {[%emt 0:02:49]} Rf6 {[%emt 0:00:46]} 45. Rxf6+ {[%emt 0:01:16]} Kxf6 {[%emt 0:00:04]} 46. Rc6+ {[%emt 0:01:09]} Kg5 {[%emt 0:00:07]} 47. Rc2 {[%emt 0:00:45]} h5 {[%emt 0:01:25]} 48. Rb2 {[%emt 0:00:30]} Rd3 {[%emt 0:00:23]} 49. Ra2 {[%emt 0:00:12]} h4 {[%emt 0:00:01]} 50. Kg2 {[%emt 0:00:22]} hxg3 {[%emt 0:00:05]} 51. fxg3 {[%emt 0:00:11]} Kg4 {[%emt 0:00:09]} 52. Kf2 {[%emt 0:00:54]} Rxg3 {[%emt 0:00:10]} 53. a4 {[%emt 0:00:03]} e3+ {[%emt 0:00:41]} 54. Kf1 {[%emt 0:00:18]} Kf3 {[%emt 0:03:02]} 55. a5 {[%emt 0:00:15]} Rh3 {[%emt 0:00:44]} 56. Kg1 {[%emt 0:00:37]} e2 {[%emt 0:01:20]} 57. Ra3+ {[%emt 0:01:10]} Kg4 {[%emt 0:00:39]} 58. Ra1 {[%emt 0:00:32]} Ra3 {[%emt 0:00:10]} 59. Re1 {[%emt 0:00:14]} Kf3 {[%emt 0:00:10]} 60. Rb1 {[%emt 0:00:40]} f4 {[%emt 0:00:11]} 61. a6 {[%emt 0:00:12]} Kg3 {[%emt 0:00:35]} 62. a7 {[%emt 0:00:17]} f3 {[%emt 0:00:22]} 63. Kh1 {[%emt 0:00:40]} Rxa7 {[%emt 0:00:08]} 0-1

[Event "8th Montevideo Open 2025"]
[Site "Montevideo"]
[Date "2025.02.05"]
[Round "5.18"]
[White "Carvalho, Guillermo"]
[Black "de los Reyes, Mauro"]
[Result "1-0"]
[Annotator "NA RC"]
[ECO "D40"]
[WhiteElo "2094"]
[BlackElo "1849"]
[PlyCount "57"]
[EventDate "2025.02.01"]
[EventType "swiss"]
[EventCountry "URU"]
[SourceTitle "playchess.com"]
[Source "ChessBase"]
[SourceQuality "1"]
[TimeControl "5400+30"]

1. c4 {[%emt 0:00:05]} c6 {[%emt 0:00:13]} 2. e4 {[%emt 0:00:16]} d5 {[%emt 0:00:52]} 3. exd5 {[%emt 0:00:07]} cxd5 {[%emt 0:00:07]} 4. d4 {[%emt 0:00:04]} Nc6 {[%emt 0:01:00]} 5. Nc3 {[%emt 0:00:50]} e6 {[%emt 0:01:49]} 6. Nf3 {[%emt 0:00:10]} Nf6 {[%emt 0:01:32]} 7. a3 {[%emt 0:01:31]} a5 {[%emt 0:00:54]} 8. Bd3 {[%emt 0:01:06]} h6 {[%emt 0:03:13]} 9. O-O {[%emt 0:00:56]} Be7 {[%emt 0:00:18]} 10. Re1 {[%emt 0:05:40]} dxc4 {[%emt 0:01:23]} 11. Bxc4 {[%emt 0:00:09]} O-O {[%emt 0:00:09]} 12. Bd3 {[%emt 0:02:04]} Nd5 {[%emt 0:03:10]} 13. Bc2 {[%emt 0:03:53]} Nf6 {[%emt 0:07:57]} 14. Qd3 {[%emt 0:02:33]} Re8 {[%emt 0:07:51]} 15. Bf4 {[%emt 0:09:50]} Bd6 {[%emt 0:02:04]} 16. Bxd6 {[%emt 0:07:28]} Qxd6 {[%emt 0:03:20]} 17. Rad1 {[%emt 0:03:42]} Bd7 {[%emt 0:04:17]} 18. Nb5 {[%emt 0:09:21]} Qb8 {[%emt 0:01:42]} 19. Nc3 {[%emt 0:00:30]} g6 {[%emt 0:00:30]} 20. Ne5 {[%emt 0:00:30]} Nxe5 21. dxe5 {[%emt 0:09:58]} Nd5 {[%emt 0:07:46]} 22. Qh3 {[%emt 0:00:30]} Nxc3 {[%emt 0:00:30]} 23. bxc3 {[%emt 0:00:30]} Re7 {[%emt 0:00:30]} 24. Qxh6 {[%emt 0:00:30]} Qf8 {[%emt 0:00:30]} 25. Qf4 {[%emt 0:00:30]} Rc8 {[%emt 0:00:30]} 26. Re3 {[%emt 0:00:30]} Bb5 {[%emt 0:00:30]} 27. a4 {[%emt 0:00:30]} Ba6 {[%emt 0:00:30]} 28. Qf6 {[%emt 0:00:30]} Rec7 {[%emt 0:00:30]} 29. Rh3 {[%emt 0:00:30]} 1-0

[Event "8th Montevideo Open 2025"]
[Site "Montevideo"]
[Date "2025.02.05"]
[Round "5.19"]
[White "Saralegui, Mario"]
[Black "Miller, Ariel"]
[Result "0-1"]
[Annotator "TA"]
[ECO "A67"]
[WhiteElo "2034"]
[BlackElo "1835"]
[PlyCount "94"]
[EventDate "2025.02.01"]
[EventType "swiss"]
[EventCountry "URU"]
[SourceTitle "playchess.com"]
[Source "ChessBase"]
[SourceQuality "1"]
[TimeControl "5400+30"]

{[%evp 20,94,69,63,91,73,116,97,106,74,85,97,77,81,158,81,123,131,202,174,221,187,258,274,234,52,59,68,59,58,35,-58,-34,-67,-50,-47,-56,-55,-61,-56,-43,-79,-54,-62,-56,-102,-108,-110,-99,-210,-194,-200,-201,-212,-215,-213,-209,-214,-215,-235,-214,-239,-242,-304,-292,-308,-302,-306,-313,-315,-310,-302,-279,-281,-222,-5903,-5824]} 1. d4 {[%emt 0:00:41]} Nf6 {[%emt 0:00:04]} 2. c4 {[%emt 0:01:41]} c5 {[%emt 0:00:11]} 3. d5 {[%emt 0:00:08]} e6 {[%emt 0:00:12]} 4. Nc3 {[%emt 0:00:09]} exd5 {[%emt 0:00:03]} 5. cxd5 {[%emt 0:00:13]} d6 {[%emt 0:00:04]} 6. e4 {[%emt 0:00:54]} g6 {[%emt 0:00:30]} 7. f4 {[%emt 0:00:08]} Bg7 {[%emt 0:00:36]} 8. Bb5+ {[%emt 0:00:11]} Nfd7 {[%emt 0:00:20]} 9. a4 {[%emt 0:00:07]} O-O {[%emt 0:00:26]} 10. Nf3 {[%emt 0:00:05]} a6 {[%emt 0:00:39]} 11. Bd3 {[%emt 0:00:10] 11.Bd3 is better than 11.Be2.} Re8 {[%emt 0:03:31][%cal Oc5c4] A67: Modern Benoni: Taimanov Variation.} 12. O-O {[%emt 0:00:08]} Nf8 {[%emt 0:02:22]} 13. Kh1 {[%emt 0:05:49]} Nbd7 $146 {[%emt 0:07:00] White is better.} (13... b6 14. Nd2 Nbd7 15. Nc4 Qc7 16. Qf3 Rb8 17. e5 dxe5 18. d6 Qa7 19. f5 Bb7 {0-1 Lucas,M-Homuth,M Regionalliga NordN 1990}) 14. Qc2 {[%emt 0:00:54]} Rb8 {[%emt 0:00:57]} 15. Bd2 {[%emt 0:06:54]} Qc7 {[%emt 0:02:28]} 16. b3 {[%emt 0:01:53]} Nb6 {[%emt 0:10:31]} (16... Nf6 $142) 17. Rac1 {[%emt 0:12:31]} (17. e5 $142) 17... c4 {[%emt 0:10:18]} 18. Nd1 {[%emt 0:02:02]} Bd7 {[%emt 0:08:57]} (18... Qd7 $16 {keeps fighting.}) 19. Ne3 {[%emt 0:05:04]} (19. bxc4 $6 Nxa4 20. Bb4 Nc5 $14) (19. Bxc4 $6 Nxc4 20. bxc4 (20. Qxc4 Qxc4 21. bxc4 Rxe4 $11) 20... b5 $16) 19... Rbc8 {[%emt 0:03:47]} (19... Rec8 $142 20. Bxc4 (20. a5 c3 $16) 20... Nxc4) 20. a5 {[%emt 0:01:43]} (20. Bxc4 Nxc4 21. Qxc4 (21. Nxc4 b5 $11) 21... Qd8 $16) 20... Qc5 {[%emt 0:07:05]} (20... c3 $142) 21. Nxc4 $18 {[%emt 0:04:09]} Nxc4 {[%emt 0:01:35]} 22. Qxc4 {[%emt 0:00:08]} (22. Bxc4 Bb5 23. Rfe1 Bxc4) (22. bxc4 $18 {[%cal Oe4e5] Black must now prevent e5!.} b5 23. axb6) 22... Bb5 $1 $14 {[%emt 0:00:53]} 23. Qxc5 {[%emt 0:01:40]} Rxc5 {[%emt 0:00:02]} 24. Bxb5 {[%emt 0:04:00]} Rxb5 {[%emt 0:00:05] [#]} 25. e5 {[%emt 0:16:20]} Rxd5 {[%emt 0:03:59][%cal Rd6e5]} 26. Bc3 {[%emt 0:01:15]} Rc8 {[%emt 0:05:44]} 27. Bb4 {[%emt 0:09:00]} Rxc1 {[%emt 0:02:07]} 28. Rxc1 {[%emt 0:00:03]} dxe5 {[%emt 0:00:29]} 29. fxe5 {[%emt 0:01:26]} Ne6 {[%emt 0:14:08][%cal Og7f8]} 30. g3 {[%emt 0:00:46]} Bf8 {[%emt 0:01:26]} (30... Bxe5 $2 {loses.} 31. Rc8+ Kg7 32. Nxe5 $18) 31. Rc8 {[%emt 0:02:58]} Rd8 {[%emt 0:00:17]} 32. Rc4 {[%emt 0:00:06]} (32. Rxd8 $15 {might be stronger.} Nxd8 33. Bc3) 32... Rd3 $17 {[%emt 0:01:33][%csl LRb3,LRf3]} 33. Kg2 {[%emt 0:07:55]} Rxb3 {[%emt 0:00:28]} 34. Bd6 {[%emt 0:01:58] [#]} (34. Bc3 $17) 34... Bxd6 $1 $19 {[%emt 0:02:36]} 35. exd6 {[%emt 0:00:02][%mdl 4096] Endgame [#] KRN-KRN. Black is a pawn up.} Rd3 {[%emt 0:00:08] Prevents Nd4.} 36. Rc8+ {[%emt 0:01:12]} Kg7 {[%emt 0:00:01]} 37. Rb8 {[%emt 0:00:28]} Rxd6 {[%emt 0:00:03]} 38. Rxb7 {[%emt 0:00:08]} Rd5 {[%emt 0:00:07] Against Ne5} 39. h4 {[%emt 0:01:52]} Rxa5 {[%emt 0:00:08]} 40. Ra7 {[%emt 0:00:31]} h5 {[%emt 0:00:24]} 41. Kf2 {[%emt 0:01:32]} Kf6 {[%emt 0:00:48]} 42. Ke3 {[%emt 0:00:15]} Ra1 {[%emt 0:02:09]} 43. Ke2 {[%emt 0:01:39]} a5 {[%emt 0:00:20]} 44. Ke3 {[%emt 0:01:03]} a4 {[%emt 0:00:10]} 45. Nd2 {[%emt 0:01:43]} a3 {[%emt 0:01:53]} 46. Ne4+ {[%emt 0:00:08]} Kg7 {[%emt 0:00:40] White must now prevent ...a2.} 47. Ng5 $2 {[%emt 0:00:18]} (47. Nc3) 47... Nxg5 {[%emt 0:00:12] Quite a comeback for Black.   Weighted Error Value: White=0.50/Black=0.19 (very precise)   Missed win:     	White=1     	---        Mistake:       	White=5     	Black=4      Inaccurate:     	White=3     	Black=2      OK:         	White=10    	Black=12     Best:        	White=3     	Black=3      Strong:       	---       	Black=2} 0-1

[Event "8th Montevideo Open 2025"]
[Site "Montevideo"]
[Date "2025.02.05"]
[Round "5.20"]
[White "Guerrero, Alvaro"]
[Black "Martinez Garay, Carlos"]
[Result "1-0"]
[Annotator "TA"]
[ECO "A50"]
[WhiteElo "2028"]
[BlackElo "1838"]
[PlyCount "55"]
[EventDate "2025.02.01"]
[EventType "swiss"]
[EventCountry "URU"]
[SourceTitle "playchess.com"]
[Source "ChessBase"]
[SourceQuality "1"]
[TimeControl "5400+30"]

{[%evp 9,55,70,72,70,75,64,79,70,79,80,92,89,200,37,162,161,196,169,152,124,304,258,273,268,325,210,341,337,385,390,1175,776,29989,29989,29993,29991,29991,29992,29992,29993,29993,29994,29994,29995,29994,29995,29995,1087]} 1. d4 {[%emt 0:21:05]} Nf6 {[%emt 0:01:28]} 2. c4 {[%emt 0:00:05]} e6 {[%emt 0:00:13]} 3. Nc3 {[%emt 0:00:10]} b6 {[%emt 0:00:07]} 4. e4 {[%emt 0:00:10]} d6 {[%emt 0:02:33]} 5. Nf3 {[%emt 0:00:26]} Be7 {[%emt 0:00:28]} 6. Bd3 {[%emt 0:00:09] A50: Queen's Fianchetto Defence (1 d4 Nf6 2 c4 b6).} Bb7 {[%emt 0:04:27]} 7. h3 {[%emt 0:01:40]} h6 {[%emt 0:00:49]} 8. O-O {[%emt 0:00:48] White is better.} O-O {[%emt 0:04:25]} 9. Qe2 $146 {[%emt 0:00:40]} (9. d5 c6 10. Bc2 cxd5 11. cxd5 e5 12. Be3 Nbd7 13. Rc1 Rb8 14. Re1 Re8 15. Bb1 {1-0 Bui,T (2132)-Dao,L (2148) VIE-ch U13 Girls 2022 (1)}) 9... Nfd7 {[%emt 0:03:16]} 10. Be3 {[%emt 0:06:36]} f5 {[%emt 0:06:11]} (10... Nc6 $16) 11. d5 $2 {[%emt 0:01:00]} (11. exf5 $18 exf5 12. Rae1) 11... fxe4 {[%emt 0:04:43]} ({Black should play} 11... f4 $14) 12. Bxe4 $18 {[%emt 0:00:07]} Nf6 {[%emt 0:04:04]} 13. Bc2 {[%emt 0:04:12]} exd5 {[%emt 0:06:00]} 14. Nd4 {[%emt 0:02:47] White is much more active. The black rooks are passive.} Bc8 {[%emt 0:02:04] Against Ne6} (14... dxc4 $16 {keeps fighting.} 15. Rae1 (15. Qxc4+ d5 $16) (15. Ne6 Qd7 $16) 15... Rf7) 15. cxd5 {[%emt 0:01:07]} Qe8 {[%emt 0:05:26]} 16. Rfe1 {[%emt 0:00:59]} Bd8 {[%emt 0:02:43]} 17. Qd3 {[%emt 0:02:53][%cal Oe3g5] [#]} Qf7 {[%emt 0:02:26]} (17... Nbd7 $142 18. Qd1 Qf7) 18. Ne4 {[%emt 0:05:50] Strongly threatening Nxf6+.} Nxe4 {[%emt 0:08:09]} 19. Qxe4 {[%emt 0:00:05][%csl Gc2][%cal Re4h7]} Qf6 $2 {[%emt 0:00:30] Black is weak on the light squares} (19... g5 20. Ne6 Re8) 20. Ne6 {[%emt 0:00:55]} Re8 {[%emt 0:02:45]} 21. Bd4 {[%emt 0:00:19] White mates.} Rxe6 {[%emt 0:02:04]} 22. Qh7+ {[%emt 0:00:15]} Kf7 {[%emt 0:00:44][%cal Bg8f7,Bf7e7,Be7e6,Be6d5][%mdl 32]} 23. dxe6+ {[%emt 0:00:12]} Bxe6 {[%emt 0:00:33]} 24. Bxf6 {[%emt 0:00:23]} Bxf6 {[%emt 0:00:17]} 25. Qg6+ {[%emt 0:00:07]} Ke7 {[%emt 0:01:16] [#]} 26. Rxe6+ $1 {[%emt 0:00:04]} Kxe6 {[%emt 0:00:57]} 27. Re1+ {[%emt 0:00:03]} Kd5 {[%emt 0:01:31]} 28. Qe4+ {[%emt 0:00:16] Weighted Error Value: White=0.50/Black=0.96  Loses game:     	---       	Black=1      Missed win:     	White=1     	---        Mistake:       	---       	Black=4      Inaccurate:     	White=2     	Black=1      OK:         	White=3     	Black=3} (28. Bb3+ $142 Kc5 29. Qc2+ Bc3 30. Qxc3+ (30. bxc3 b5 $18) 30... Kb5 31. Qc4+ Ka5 32. Qa4#) 1-0